[Event "Titled Tuesday Blitz November 15 Late 2022"]
[White "Pino Perez, Lazaro"]
[Black "Sanchez, Robert"]
[WhiteFideId "3517055"]
[BlackFideId "2034360"]
[WhiteElo "2170"]
[BlackElo "2297"]
[Result "0-1"]
[Round "10"]
[TimeControl "180+1"]
[Date "2022.11.16"]
[WhiteClock "0:00:02"]
[BlackClock "0:00:04"]

1. d4 {[%clk 0:03:00]}  d5 {[%clk 0:02:59]} 2. Bf4 {[%clk 0:03:00]}  Bf5 {[%clk 0:02:58]} 3. e3 {[%clk 0:02:56]}  c6 {[%clk 0:02:56]} 4. c4 {[%clk 0:02:56]}  Qb6 {[%clk 0:02:55]} 5. Qb3 {[%clk 0:02:55]}  e6 {[%clk 0:02:53]} 6. c5 {[%clk 0:02:54]}  Qa5+ {[%clk 0:02:42]} 7. Nc3 {[%clk 0:02:45]}  b6 {[%clk 0:02:41]} 8. a3 {[%clk 0:02:45]}  Nd7 {[%clk 0:02:36]} 9. Qb4 {[%clk 0:02:45]}  e5 {[%clk 0:02:18]} 10. Bg3 {[%clk 0:02:34]}  Qxb4 {[%clk 0:02:12]} 11. axb4 {[%clk 0:02:34]}  f6 {[%clk 0:01:59]} 12. Ba6 {[%clk 0:01:48]}  Rb8 {[%clk 0:01:57]} 13. b5 {[%clk 0:01:38]}  bxc5 {[%clk 0:01:30]} 14. bxc6 {[%clk 0:01:37]}  cxd4 {[%clk 0:01:24]} 15. cxd7+ {[%clk 0:01:24]}  Bxd7 {[%clk 0:01:16]} 16. exd4 {[%clk 0:01:24]}  Rxb2 {[%clk 0:01:09]} 17. Nge2 {[%clk 0:01:23]}  Bb4 {[%clk 0:01:05]} 18. O-O {[%clk 0:01:22]}  exd4 {[%clk 0:00:58]} 19. Nxd5 {[%clk 0:01:22]}  Bc5 {[%clk 0:00:54]} 20. Rfd1 {[%clk 0:00:49]}  Bg4 {[%clk 0:00:44]} 21. Kf1 {[%clk 0:00:33]}  Ne7 {[%clk 0:00:34]} 22. Nc7+ {[%clk 0:00:32]}  Kf7 {[%clk 0:00:30]} 23. Bc4+ {[%clk 0:00:29]}  Kg6 {[%clk 0:00:27]} 24. f3 {[%clk 0:00:29]}  Bd7 {[%clk 0:00:21]} 25. Nf4+ {[%clk 0:00:29]}  Kh6 {[%clk 0:00:20]} 26. Nce6 {[%clk 0:00:28]}  Bb6 {[%clk 0:00:17]} 27. Nxd4 {[%clk 0:00:27]}  Nf5 {[%clk 0:00:12]} 28. Nxf5+ {[%clk 0:00:26]}  Bxf5 {[%clk 0:00:13]} 29. Nd5 {[%clk 0:00:25]}  Bc5 {[%clk 0:00:12]} 30. Bf4+ {[%clk 0:00:25]}  g5 {[%clk 0:00:12]} 31. Be3 {[%clk 0:00:24]}  Bd6 {[%clk 0:00:10]} 32. Nxf6 {[%clk 0:00:23]}  Bxh2 {[%clk 0:00:10]} 33. Rd5 {[%clk 0:00:20]}  Be6 {[%clk 0:00:07]} 34. Rxg5 {[%clk 0:00:19]}  Bxc4+ {[%clk 0:00:07]} 35. Ke1 {[%clk 0:00:11]}  Re2+ {[%clk 0:00:07]} 36. Kd1 {[%clk 0:00:11]}  Rxe3 {[%clk 0:00:08]} 37. Rg4 {[%clk 0:00:06]}  Rd8+ {[%clk 0:00:07]} 38. Kc2 {[%clk 0:00:06]}  Be6 {[%clk 0:00:04]} 39. Rh4+ {[%clk 0:00:04]}  Kg6 {[%clk 0:00:04]} 40. Rxh2 {[%clk 0:00:03]}  Kxf6 {[%clk 0:00:04]} 41. Rh6+ {[%clk 0:00:02]}  Kg7 {[%clk 0:00:04]} 0-1


[Site "https://www.chess.com"]

[Event "Titled Tuesday Blitz November 15 Late 2022"]
[White "Prydun, Andriy"]
[Black "Tan, Ralph"]
[WhiteFideId "14145898"]
[BlackFideId "30966590"]
[WhiteElo "2163"]
[BlackElo "2059"]
[Result "1/2-1/2"]
[Round "10"]
[TimeControl "180+1"]
[Date "2022.11.16"]
[WhiteClock "0:00:08"]
[BlackClock "0:00:14"]

1. d4 {[%clk 0:03:00]}  Nf6 {[%clk 0:03:00]} 2. c4 {[%clk 0:02:59]}  g6 {[%clk 0:02:59]} 3. Nc3 {[%clk 0:03:00]}  Bg7 {[%clk 0:02:59]} 4. g3 {[%clk 0:02:58]}  O-O {[%clk 0:02:57]} 5. Nf3 {[%clk 0:02:59]}  d5 {[%clk 0:02:56]} 6. Bg2 {[%clk 0:03:00]}  c5 {[%clk 0:02:54]} 7. O-O {[%clk 0:02:58]}  cxd4 {[%clk 0:02:51]} 8. Nxd4 {[%clk 0:02:55]}  e5 {[%clk 0:02:49]} 9. Ndb5 {[%clk 0:02:49]}  d4 {[%clk 0:02:47]} 10. Nd5 {[%clk 0:02:47]}  Nxd5 {[%clk 0:02:45]} 11. cxd5 {[%clk 0:02:48]}  a6 {[%clk 0:02:44]} 12. Na3 {[%clk 0:02:47]}  Nd7 {[%clk 0:02:41]} 13. e4 {[%clk 0:02:45]}  b5 {[%clk 0:02:34]} 14. Bd2 {[%clk 0:02:39]}  Bb7 {[%clk 0:02:33]} 15. Nc2 {[%clk 0:02:34]}  Rc8 {[%clk 0:02:29]} 16. Ne1 {[%clk 0:02:31]}  Qb6 {[%clk 0:02:18]} 17. Nd3 {[%clk 0:02:30]}  a5 {[%clk 0:02:14]} 18. f4 {[%clk 0:02:18]}  b4 {[%clk 0:02:11]} 19. f5 {[%clk 0:01:58]}  Ba6 {[%clk 0:02:08]} 20. Bg5 {[%clk 0:00:32]}  f6 {[%clk 0:01:49]} 21. Bc1 {[%clk 0:00:25]}  Nc5 {[%clk 0:01:34]} 22. Nf2 {[%clk 0:00:20]}  gxf5 {[%clk 0:01:19]} 23. exf5 {[%clk 0:00:19]}  b3 {[%clk 0:01:11]} 24. Re1 {[%clk 0:00:16]}  bxa2 {[%clk 0:01:07]} 25. Rxa2 {[%clk 0:00:15]}  Nb3 {[%clk 0:01:05]} 26. Bd2 {[%clk 0:00:15]}  Bc4 {[%clk 0:00:50]} 27. Ra3 {[%clk 0:00:15]}  Rfd8 {[%clk 0:00:42]} 28. h4 {[%clk 0:00:09]}  Nxd2 {[%clk 0:00:40]} 29. Qxd2 {[%clk 0:00:09]}  Bxd5 {[%clk 0:00:40]} 30. Rxa5 {[%clk 0:00:09]}  Bxg2 {[%clk 0:00:38]} 31. Kxg2 {[%clk 0:00:10]}  Bh6 {[%clk 0:00:33]} 32. Qxh6 {[%clk 0:00:07]}  Qxa5 {[%clk 0:00:33]} 33. Ng4 {[%clk 0:00:05]}  Qxe1 {[%clk 0:00:14]} 34. Nxf6+ {[%clk 0:00:04]}  Kf7 {[%clk 0:00:14]} 35. Qxh7+ {[%clk 0:00:04]}  Kxf6 {[%clk 0:00:13]} 36. Qg6+ {[%clk 0:00:05]}  Ke7 {[%clk 0:00:13]} 37. Qe6+ {[%clk 0:00:05]}  Kf8 {[%clk 0:00:14]} 38. Qf6+ {[%clk 0:00:06]}  Ke8 {[%clk 0:00:14]} 39. Qe6+ {[%clk 0:00:07]}  Kf8 {[%clk 0:00:14]} 40. Qf6+ {[%clk 0:00:07]}  Kg8 {[%clk 0:00:13]} 41. Qg6+ {[%clk 0:00:08]}  Kf8 {[%clk 0:00:14]} 42. Qf6+ {[%clk 0:00:08]} 1/2-1/2


[Site "https://www.chess.com"]

[Event "Titled Tuesday Blitz November 15 Late 2022"]
[White "Radovanovic, Dusan"]
[Black "Sohal, Tanraj"]
[WhiteFideId "926868"]
[BlackFideId "2608499"]
[WhiteElo "2341"]
[BlackElo "2200"]
[Result "1/2-1/2"]
[Round "10"]
[TimeControl "180+1"]
[Date "2022.11.16"]
[WhiteClock "0:00:06"]
[BlackClock "0:00:05"]

1. e4 {[%clk 0:03:00]}  c5 {[%clk 0:02:53]} 2. Nf3 {[%clk 0:03:00]}  Nf6 {[%clk 0:02:54]} 3. e5 {[%clk 0:02:57]}  Nd5 {[%clk 0:02:53]} 4. Nc3 {[%clk 0:02:53]}  Nxc3 {[%clk 0:02:52]} 5. bxc3 {[%clk 0:02:51]}  d5 {[%clk 0:02:53]} 6. exd6 {[%clk 0:02:44]}  exd6 {[%clk 0:02:52]} 7. d4 {[%clk 0:02:44]}  Qc7 {[%clk 0:02:50]} 8. d5 {[%clk 0:02:29]}  Be7 {[%clk 0:02:49]} 9. Bd3 {[%clk 0:02:13]}  O-O {[%clk 0:02:47]} 10. O-O {[%clk 0:02:12]}  Nd7 {[%clk 0:02:40]} 11. c4 {[%clk 0:02:06]}  Bf6 {[%clk 0:02:39]} 12. Rb1 {[%clk 0:02:06]}  Nb6 {[%clk 0:02:38]} 13. h3 {[%clk 0:02:00]}  Bd7 {[%clk 0:02:36]} 14. Bf4 {[%clk 0:01:56]}  Rae8 {[%clk 0:02:32]} 15. Qd2 {[%clk 0:01:55]}  g6 {[%clk 0:02:30]} 16. Bh6 {[%clk 0:01:44]}  Bg7 {[%clk 0:02:30]} 17. Bxg7 {[%clk 0:01:41]}  Kxg7 {[%clk 0:02:31]} 18. Qc3+ {[%clk 0:01:40]}  Kg8 {[%clk 0:02:27]} 19. Ng5 {[%clk 0:01:35]}  Qd8 {[%clk 0:02:25]} 20. Ne4 {[%clk 0:01:28]}  Rxe4 {[%clk 0:02:17]} 21. Bxe4 {[%clk 0:01:27]}  Qg5 {[%clk 0:02:16]} 22. f4 {[%clk 0:01:19]}  Qh4 {[%clk 0:02:12]} 23. Kh2 {[%clk 0:01:15]}  Re8 {[%clk 0:01:52]} 24. Rbe1 {[%clk 0:01:13]}  Qh6 {[%clk 0:01:47]} 25. f5 {[%clk 0:00:39]}  Na4 {[%clk 0:01:38]} 26. Qg3 {[%clk 0:00:36]}  Re5 {[%clk 0:01:29]} 27. Bd3 {[%clk 0:00:36]}  Nb2 {[%clk 0:01:03]} 28. Rxe5 {[%clk 0:00:33]}  dxe5 {[%clk 0:01:04]} 29. Qxe5 {[%clk 0:00:33]}  Nxd3 {[%clk 0:01:04]} 30. cxd3 {[%clk 0:00:31]}  Bxf5 {[%clk 0:01:05]} 31. Qe8+ {[%clk 0:00:23]}  Kg7 {[%clk 0:01:05]} 32. d6 {[%clk 0:00:24]}  Qd2 {[%clk 0:00:40]} 33. d7 {[%clk 0:00:18]}  Bxh3 {[%clk 0:00:40]} 34. Qe5+ {[%clk 0:00:16]}  Kh6 {[%clk 0:00:37]} 35. Qf4+ {[%clk 0:00:13]}  Qxf4+ {[%clk 0:00:36]} 36. Rxf4 {[%clk 0:00:14]}  Bxd7 {[%clk 0:00:36]} 37. Rxf7 {[%clk 0:00:14]}  Bc6 {[%clk 0:00:16]} 38. Kg3 {[%clk 0:00:14]}  a6 {[%clk 0:00:11]} 39. a3 {[%clk 0:00:13]}  g5 {[%clk 0:00:05]} 40. Kf2 {[%clk 0:00:12]}  Kg6 {[%clk 0:00:05]} 41. Rc7 {[%clk 0:00:10]}  h5 {[%clk 0:00:05]} 42. g3 {[%clk 0:00:10]}  h4 {[%clk 0:00:06]} 43. gxh4 {[%clk 0:00:10]}  gxh4 {[%clk 0:00:06]} 44. Kg1 {[%clk 0:00:10]}  Kg5 {[%clk 0:00:07]} 45. Kh2 {[%clk 0:00:10]}  Kf4 {[%clk 0:00:07]} 46. Re7 {[%clk 0:00:10]}  Kf3 {[%clk 0:00:04]} 47. Kh3 {[%clk 0:00:09]}  b5 {[%clk 0:00:04]} 48. Rc7 {[%clk 0:00:08]}  Be8 {[%clk 0:00:04]} 49. Rxc5 {[%clk 0:00:08]}  Ke3 {[%clk 0:00:03]} 50. cxb5 {[%clk 0:00:08]}  Bxb5 {[%clk 0:00:03]} 51. Rd5 {[%clk 0:00:05]}  Bxd3 {[%clk 0:00:03]} 52. Kxh4 {[%clk 0:00:05]}  Bc4 {[%clk 0:00:03]} 53. Rd6 {[%clk 0:00:05]}  Ke4 {[%clk 0:00:03]} 54. Kg5 {[%clk 0:00:05]}  Ke5 {[%clk 0:00:03]} 55. Rd2 {[%clk 0:00:05]}  Bd5 {[%clk 0:00:03]} 56. Rb2 {[%clk 0:00:03]}  Kd6 {[%clk 0:00:03]} 57. Rb6+ {[%clk 0:00:04]}  Kc5 {[%clk 0:00:03]} 58. Rxa6 {[%clk 0:00:04]}  Bc4 {[%clk 0:00:03]} 59. Ra8 {[%clk 0:00:04]}  Bd5 {[%clk 0:00:03]} 60. Kf5 {[%clk 0:00:05]}  Bxa8 {[%clk 0:00:03]} 61. Ke5 {[%clk 0:00:05]}  Kb6 {[%clk 0:00:03]} 62. Kd4 {[%clk 0:00:05]}  Ka5 {[%clk 0:00:04]} 63. a4 {[%clk 0:00:06]}  Kxa4 {[%clk 0:00:05]} 1/2-1/2


[Site "https://www.chess.com"]

[Event "Titled Tuesday Blitz November 15 Late 2022"]
[White "Rodriguez Fontecha, Marcos"]
[Black "Urbina Quiroz, Edwin"]
[WhiteFideId "2256576"]
[BlackFideId "6500650"]
[WhiteElo "2263"]
[BlackElo "2152"]
[Result "0-1"]
[Round "10"]
[TimeControl "180+1"]
[Date "2022.11.16"]
[WhiteClock "0:00:31"]
[BlackClock "0:00:10"]

1. e4 {[%clk 0:03:00]}  e5 {[%clk 0:02:59]} 2. Nf3 {[%clk 0:02:59]}  Nc6 {[%clk 0:03:00]} 3. d4 {[%clk 0:02:58]}  exd4 {[%clk 0:03:00]} 4. Bc4 {[%clk 0:02:57]}  Nf6 {[%clk 0:03:00]} 5. O-O {[%clk 0:02:53]}  Nxe4 {[%clk 0:03:00]} 6. Re1 {[%clk 0:02:54]}  d5 {[%clk 0:03:00]} 7. Bxd5 {[%clk 0:02:54]}  Qxd5 {[%clk 0:03:01]} 8. Nc3 {[%clk 0:02:54]}  Qh5 {[%clk 0:03:02]} 9. Nxe4 {[%clk 0:02:55]}  Be6 {[%clk 0:03:02]} 10. Bg5 {[%clk 0:02:55]}  Bd6 {[%clk 0:02:55]} 11. Nxd6+ {[%clk 0:02:47]}  cxd6 {[%clk 0:02:56]} 12. Bf4 {[%clk 0:02:47]}  Qd5 {[%clk 0:02:56]} 13. c3 {[%clk 0:02:38]}  Kd7 {[%clk 0:02:56]} 14. cxd4 {[%clk 0:02:32]}  h6 {[%clk 0:02:47]} 15. Bg3 {[%clk 0:02:22]}  Bg4 {[%clk 0:02:42]} 16. Re3 {[%clk 0:02:11]}  Rhe8 {[%clk 0:02:35]} 17. Rd3 {[%clk 0:02:09]}  Re4 {[%clk 0:02:11]} 18. h3 {[%clk 0:01:54]}  Bxf3 {[%clk 0:02:10]} 19. Qxf3 {[%clk 0:01:54]}  Rae8 {[%clk 0:02:02]} 20. Rad1 {[%clk 0:01:41]}  Re1+ {[%clk 0:01:54]} 21. Kh2 {[%clk 0:01:39]}  Qxf3 {[%clk 0:01:50]} 22. gxf3 {[%clk 0:01:40]}  Rxd1 {[%clk 0:01:37]} 23. Rxd1 {[%clk 0:01:41]}  Re2 {[%clk 0:01:17]} 24. d5 {[%clk 0:01:40]}  Ne5 {[%clk 0:01:15]} 25. Rb1 {[%clk 0:01:29]}  Nd3 {[%clk 0:01:06]} 26. Kg2 {[%clk 0:01:27]}  Rxb2 {[%clk 0:01:02]} 27. Rd1 {[%clk 0:01:24]}  Nc5 {[%clk 0:00:54]} 28. Rd4 {[%clk 0:01:12]}  Rxa2 {[%clk 0:00:50]} 29. Rf4 {[%clk 0:01:13]}  f6 {[%clk 0:00:50]} 30. Rg4 {[%clk 0:01:04]}  g5 {[%clk 0:00:49]} 31. h4 {[%clk 0:01:02]}  Ra4 {[%clk 0:00:48]} 32. f4 {[%clk 0:00:59]}  Rd4 {[%clk 0:00:43]} 33. Kh3 {[%clk 0:00:52]}  h5 {[%clk 0:00:35]} 34. Rxg5 {[%clk 0:00:47]}  fxg5 {[%clk 0:00:35]} 35. hxg5 {[%clk 0:00:47]}  Nd3 {[%clk 0:00:29]} 36. f5 {[%clk 0:00:43]}  Rg4 {[%clk 0:00:23]} 37. g6 {[%clk 0:00:41]}  Ke7 {[%clk 0:00:10]} 38. f3 {[%clk 0:00:33]}  Rxg3+ {[%clk 0:00:10]} 39. Kxg3 {[%clk 0:00:32]}  Kf6 {[%clk 0:00:11]} 40. Kh4 {[%clk 0:00:31]}  Nf4 {[%clk 0:00:10]} 41. Kg3 {[%clk 0:00:31]}  Nxg6 {[%clk 0:00:10]} 0-1


[Site "https://www.chess.com"]

[Event "Titled Tuesday Blitz November 15 Late 2022"]
[White "Santos Flores, Alberto"]
[Black "He, Samuel"]
[WhiteFideId "3601234"]
[BlackFideId "2087235"]
[WhiteElo "2235"]
[BlackElo "2609"]
[Result "1/2-1/2"]
[Round "10"]
[TimeControl "180+1"]
[Date "2022.11.16"]
[WhiteClock "0:00:22"]
[BlackClock "0:00:13"]

1. d4 {[%clk 0:03:00]}  Nf6 {[%clk 0:02:59]} 2. Nf3 {[%clk 0:03:00]}  e6 {[%clk 0:03:00]} 3. c4 {[%clk 0:02:59]}  d5 {[%clk 0:02:58]} 4. Nc3 {[%clk 0:02:59]}  Ne4 {[%clk 0:02:58]} 5. e3 {[%clk 0:02:46]}  c6 {[%clk 0:02:58]} 6. Bd3 {[%clk 0:02:45]}  f5 {[%clk 0:02:57]} 7. O-O {[%clk 0:02:44]}  Bd6 {[%clk 0:02:57]} 8. Ne5 {[%clk 0:02:43]}  O-O {[%clk 0:02:54]} 9. f3 {[%clk 0:02:24]}  Nxc3 {[%clk 0:02:50]} 10. bxc3 {[%clk 0:02:25]}  Nd7 {[%clk 0:02:47]} 11. f4 {[%clk 0:02:16]}  Nf6 {[%clk 0:02:33]} 12. a4 {[%clk 0:02:14]}  c5 {[%clk 0:02:24]} 13. Ba3 {[%clk 0:02:04]}  b6 {[%clk 0:02:11]} 14. cxd5 {[%clk 0:02:02]}  exd5 {[%clk 0:02:03]} 15. a5 {[%clk 0:01:46]}  Be6 {[%clk 0:01:52]} 16. axb6 {[%clk 0:01:39]}  axb6 {[%clk 0:01:51]} 17. Qc2 {[%clk 0:01:35]}  Ne4 {[%clk 0:01:36]} 18. Bxe4 {[%clk 0:01:28]}  dxe4 {[%clk 0:01:20]} 19. c4 {[%clk 0:01:02]}  cxd4 {[%clk 0:01:12]} 20. Bxd6 {[%clk 0:01:02]}  Qxd6 {[%clk 0:01:05]} 21. Rxa8 {[%clk 0:00:55]}  Rxa8 {[%clk 0:01:05]} 22. exd4 {[%clk 0:00:50]}  Qxd4+ {[%clk 0:01:05]} 23. Kh1 {[%clk 0:00:50]}  Ra1 {[%clk 0:01:02]} 24. Qe2 {[%clk 0:00:44]}  e3 {[%clk 0:00:37]} 25. h3 {[%clk 0:00:40]}  Rxf1+ {[%clk 0:00:34]} 26. Qxf1 {[%clk 0:00:41]}  Qd2 {[%clk 0:00:28]} 27. Qa1 {[%clk 0:00:33]}  h6 {[%clk 0:00:20]} 28. Qa8+ {[%clk 0:00:32]}  Kh7 {[%clk 0:00:20]} 29. Qe8 {[%clk 0:00:32]}  e2 {[%clk 0:00:11]} 30. Qg6+ {[%clk 0:00:24]}  Kh8 {[%clk 0:00:11]} 31. Qe8+ {[%clk 0:00:24]}  Bg8 {[%clk 0:00:11]} 32. Ng6+ {[%clk 0:00:24]}  Kh7 {[%clk 0:00:11]} 33. Nf8+ {[%clk 0:00:25]}  Kh8 {[%clk 0:00:12]} 34. Ng6+ {[%clk 0:00:24]}  Kh7 {[%clk 0:00:12]} 35. Nf8+ {[%clk 0:00:23]}  Kh8 {[%clk 0:00:13]} 36. Ng6+ {[%clk 0:00:22]} 1/2-1/2


[Site "https://www.chess.com"]

[Event "Titled Tuesday Blitz November 15 Late 2022"]
[White "Sargsyan, Anna M."]
[Black "Winterberg, Lukas"]
[WhiteFideId "13308130"]
[BlackFideId "24622702"]
[WhiteElo "2284"]
[BlackElo "2349"]
[Result "1-0"]
[Round "10"]
[TimeControl "180+1"]
[Date "2022.11.16"]
[WhiteClock "0:00:42"]
[BlackClock "0:00:20"]

1. d4 {[%clk 0:02:52]}  Nf6 {[%clk 0:03:00]} 2. c4 {[%clk 0:02:52]}  c5 {[%clk 0:02:59]} 3. Nf3 {[%clk 0:02:48]}  cxd4 {[%clk 0:02:59]} 4. Nxd4 {[%clk 0:02:48]}  e6 {[%clk 0:03:00]} 5. g3 {[%clk 0:02:46]}  d5 {[%clk 0:03:00]} 6. cxd5 {[%clk 0:02:45]}  Qxd5 {[%clk 0:02:57]} 7. f3 {[%clk 0:02:41]}  Nc6 {[%clk 0:02:56]} 8. Nxc6 {[%clk 0:02:38]}  Qxd1+ {[%clk 0:02:55]} 9. Kxd1 {[%clk 0:02:38]}  bxc6 {[%clk 0:02:55]} 10. Nc3 {[%clk 0:02:39]}  e5 {[%clk 0:02:46]} 11. e4 {[%clk 0:02:39]}  Be6 {[%clk 0:02:45]} 12. Kc2 {[%clk 0:02:38]}  Bc5 {[%clk 0:02:42]} 13. Ba6 {[%clk 0:02:33]}  O-O {[%clk 0:02:42]} 14. Rd1 {[%clk 0:02:29]}  Bd4 {[%clk 0:02:40]} 15. Bb7 {[%clk 0:02:21]}  Rab8 {[%clk 0:02:40]} 16. Bxc6 {[%clk 0:02:22]}  Rfc8 {[%clk 0:02:40]} 17. Ba4 {[%clk 0:02:23]}  Nd7 {[%clk 0:02:20]} 18. Bxd7 {[%clk 0:02:17]}  Bxd7 {[%clk 0:02:21]} 19. Bd2 {[%clk 0:02:13]}  Rc7 {[%clk 0:02:11]} 20. Rac1 {[%clk 0:02:12]}  h6 {[%clk 0:01:59]} 21. b3 {[%clk 0:02:07]}  Rbc8 {[%clk 0:01:56]} 22. Kd3 {[%clk 0:01:54]}  f5 {[%clk 0:01:36]} 23. Rc2 {[%clk 0:01:50]}  fxe4+ {[%clk 0:01:28]} 24. fxe4 {[%clk 0:01:50]}  Bg4 {[%clk 0:01:22]} 25. Rdc1 {[%clk 0:01:49]}  Bxc3 {[%clk 0:01:18]} 26. Bxc3 {[%clk 0:01:46]}  Bf3 {[%clk 0:01:07]} 27. Ke3 {[%clk 0:01:42]}  Bg4 {[%clk 0:01:04]} 28. Kd3 {[%clk 0:01:35]}  Bf3 {[%clk 0:01:04]} 29. Rf2 {[%clk 0:01:33]}  Bxe4+ {[%clk 0:01:03]} 30. Kxe4 {[%clk 0:01:32]}  Rxc3 {[%clk 0:01:03]} 31. Rxc3 {[%clk 0:01:31]}  Rxc3 {[%clk 0:01:04]} 32. Kxe5 {[%clk 0:01:31]}  a5 {[%clk 0:01:05]} 33. Kd4 {[%clk 0:01:25]}  Rc7 {[%clk 0:01:03]} 34. Rf5 {[%clk 0:01:25]}  a4 {[%clk 0:01:00]} 35. bxa4 {[%clk 0:01:19]}  Rc2 {[%clk 0:01:01]} 36. a5 {[%clk 0:01:19]}  Rxa2 {[%clk 0:00:47]} 37. h4 {[%clk 0:01:11]}  Ra4+ {[%clk 0:00:42]} 38. Kc3 {[%clk 0:01:09]}  Ra3+ {[%clk 0:00:38]} 39. Kb4 {[%clk 0:01:09]}  Rxg3 {[%clk 0:00:39]} 40. a6 {[%clk 0:01:09]}  Rg1 {[%clk 0:00:28]} 41. a7 {[%clk 0:00:48]}  Rb1+ {[%clk 0:00:28]} 42. Kc5 {[%clk 0:00:45]}  Ra1 {[%clk 0:00:27]} 43. Kb6 {[%clk 0:00:46]}  Rxa7 {[%clk 0:00:16]} 44. Kxa7 {[%clk 0:00:47]}  g6 {[%clk 0:00:16]} 45. Rf1 {[%clk 0:00:39]}  Kg7 {[%clk 0:00:16]} 46. Kb6 {[%clk 0:00:39]}  g5 {[%clk 0:00:17]} 47. hxg5 {[%clk 0:00:39]}  hxg5 {[%clk 0:00:17]} 48. Kc5 {[%clk 0:00:40]}  Kg6 {[%clk 0:00:18]} 49. Kd4 {[%clk 0:00:41]}  Kh5 {[%clk 0:00:19]} 50. Ke3 {[%clk 0:00:41]}  Kh4 {[%clk 0:00:20]} 51. Kf2 {[%clk 0:00:41]}  g4 {[%clk 0:00:20]} 52. Kg2 {[%clk 0:00:42]} 1-0


[Site "https://www.chess.com"]

[Event "Titled Tuesday Blitz November 15 Late 2022"]
[White "Silva Lucena, Cristian"]
[Black "Taspinar, Yanki"]
[WhiteFideId "2232588"]
[BlackFideId "34561188"]
[WhiteElo "2223"]
[BlackElo "2225"]
[Result "0-1"]
[Round "10"]
[TimeControl "180+1"]
[Date "2022.11.16"]
[WhiteClock "0:00:01"]
[BlackClock "0:00:26"]

1. e4 {[%clk 0:02:54]}  c6 {[%clk 0:03:00]} 2. d4 {[%clk 0:02:53]}  d5 {[%clk 0:03:00]} 3. e5 {[%clk 0:02:54]}  Bf5 {[%clk 0:02:59]} 4. h4 {[%clk 0:02:54]}  h5 {[%clk 0:02:58]} 5. Bd3 {[%clk 0:02:55]}  Bxd3 {[%clk 0:02:57]} 6. Qxd3 {[%clk 0:02:56]}  e6 {[%clk 0:02:57]} 7. Bg5 {[%clk 0:02:56]}  Qb6 {[%clk 0:02:55]} 8. Nd2 {[%clk 0:02:56]}  c5 {[%clk 0:02:55]} 9. c4 {[%clk 0:02:53]}  dxc4 {[%clk 0:02:50]} 10. Nxc4 {[%clk 0:02:50]}  Qb4+ {[%clk 0:02:39]} 11. Bd2 {[%clk 0:02:44]}  Qa4 {[%clk 0:02:40]} 12. Nf3 {[%clk 0:02:21]}  Nc6 {[%clk 0:02:32]} 13. O-O {[%clk 0:02:03]}  Rd8 {[%clk 0:02:31]} 14. b3 {[%clk 0:02:01]}  Qa6 {[%clk 0:02:29]} 15. Be3 {[%clk 0:01:56]}  cxd4 {[%clk 0:02:26]} 16. Bg5 {[%clk 0:01:33]}  Be7 {[%clk 0:02:14]} 17. Rac1 {[%clk 0:01:19]}  Rd5 {[%clk 0:02:05]} 18. Nd6+ {[%clk 0:01:11]}  Bxd6 {[%clk 0:01:28]} 19. Qxa6 {[%clk 0:01:11]}  bxa6 {[%clk 0:01:29]} 20. Rxc6 {[%clk 0:01:11]}  Be7 {[%clk 0:01:25]} 21. Rxa6 {[%clk 0:01:04]}  f6 {[%clk 0:01:24]} 22. Bf4 {[%clk 0:00:58]}  Kf7 {[%clk 0:01:16]} 23. Rxa7 {[%clk 0:00:57]}  Nh6 {[%clk 0:01:16]} 24. Rd1 {[%clk 0:00:52]}  Nf5 {[%clk 0:01:16]} 25. Rc1 {[%clk 0:00:43]}  Rhd8 {[%clk 0:01:07]} 26. Rcc7 {[%clk 0:00:42]}  d3 {[%clk 0:01:07]} 27. Bd2 {[%clk 0:00:31]}  Kf8 {[%clk 0:00:57]} 28. exf6 {[%clk 0:00:28]}  gxf6 {[%clk 0:00:58]} 29. a4 {[%clk 0:00:23]}  Ke8 {[%clk 0:00:54]} 30. a5 {[%clk 0:00:22]}  Bc5 {[%clk 0:00:46]} 31. Rab7 {[%clk 0:00:19]}  Nd6 {[%clk 0:00:46]} 32. a6 {[%clk 0:00:16]}  Nxb7 {[%clk 0:00:41]} 33. axb7 {[%clk 0:00:17]}  Rb8 {[%clk 0:00:35]} 34. Rh7 {[%clk 0:00:15]}  Rd7 {[%clk 0:00:29]} 35. Rh8+ {[%clk 0:00:13]}  Bf8 {[%clk 0:00:29]} 36. Bb4 {[%clk 0:00:06]}  Rf7 {[%clk 0:00:29]} 37. Nd4 {[%clk 0:00:05]}  Rbxb7 {[%clk 0:00:27]} 38. Bd2 {[%clk 0:00:05]}  Kd7 {[%clk 0:00:25]} 39. Rxh5 {[%clk 0:00:04]}  e5 {[%clk 0:00:25]} 40. Nf5 {[%clk 0:00:03]}  Ke6 {[%clk 0:00:25]} 41. Ne3 {[%clk 0:00:03]}  Bc5 {[%clk 0:00:26]} 42. Nc4 {[%clk 0:00:02]}  Rxb3 {[%clk 0:00:26]} 43. Rh8 {[%clk 0:00:02]}  Kd5 {[%clk 0:00:26]} 44. Ne3+ {[%clk 0:00:01]}  Bxe3 {[%clk 0:00:27]} 45. Bxe3 {[%clk 0:00:02]}  f5 {[%clk 0:00:26]} 46. g3 {[%clk 0:00:02]}  f4 {[%clk 0:00:26]} 47. gxf4 {[%clk 0:00:01]}  exf4 {[%clk 0:00:27]} 48. Ba7 {[%clk 0:00:01]}  Rd7 {[%clk 0:00:26]} 0-1


[Site "https://www.chess.com"]

[Event "Titled Tuesday Blitz November 15 Late 2022"]
[White "Sonnenschein, Philipp"]
[Black "Rose, Felix"]
[WhiteFideId "16250877"]
[BlackFideId "5105722"]
[WhiteElo "2225"]
[BlackElo "2039"]
[Result "0-1"]
[Round "10"]
[TimeControl "180+1"]
[Date "2022.11.16"]
[WhiteClock "0:00:02"]
[BlackClock "0:00:07"]

1. e4 {[%clk 0:02:57]}  e6 {[%clk 0:02:59]} 2. d4 {[%clk 0:02:57]}  d5 {[%clk 0:02:59]} 3. Nd2 {[%clk 0:02:58]}  c5 {[%clk 0:02:58]} 4. Ngf3 {[%clk 0:02:57]}  Nc6 {[%clk 0:02:57]} 5. exd5 {[%clk 0:02:46]}  Qxd5 {[%clk 0:02:57]} 6. Bc4 {[%clk 0:02:47]}  Qd8 {[%clk 0:02:57]} 7. O-O {[%clk 0:02:37]}  Nf6 {[%clk 0:02:53]} 8. Re1 {[%clk 0:02:32]}  a6 {[%clk 0:02:52]} 9. Nb3 {[%clk 0:02:28]}  b5 {[%clk 0:02:40]} 10. Bf1 {[%clk 0:02:28]}  c4 {[%clk 0:02:36]} 11. Nc5 {[%clk 0:02:12]}  Nxd4 {[%clk 0:02:12]} 12. Be3 {[%clk 0:01:49]}  Bxc5 {[%clk 0:02:04]} 13. Nxd4 {[%clk 0:01:49]}  Bb7 {[%clk 0:01:57]} 14. Nxe6 {[%clk 0:01:24]}  Qxd1 {[%clk 0:01:50]} 15. Nxg7+ {[%clk 0:01:20]}  Kf8 {[%clk 0:01:37]} 16. Bxc5+ {[%clk 0:01:20]}  Kxg7 {[%clk 0:01:36]} 17. Raxd1 {[%clk 0:01:20]}  Rhe8 {[%clk 0:01:30]} 18. Re3 {[%clk 0:01:04]}  Rxe3 {[%clk 0:01:25]} 19. Bxe3 {[%clk 0:01:05]}  Be4 {[%clk 0:01:22]} 20. c3 {[%clk 0:01:01]}  Kg6 {[%clk 0:01:14]} 21. Rd6 {[%clk 0:01:01]}  Kf5 {[%clk 0:00:57]} 22. g3 {[%clk 0:00:59]}  h5 {[%clk 0:00:44]} 23. Bd4 {[%clk 0:00:34]}  Ng4 {[%clk 0:00:35]} 24. Be2 {[%clk 0:00:32]}  Ne5 {[%clk 0:00:28]} 25. Bxh5 {[%clk 0:00:22]}  Nf3+ {[%clk 0:00:28]} 26. Bxf3 {[%clk 0:00:23]}  Bxf3 {[%clk 0:00:29]} 27. h4 {[%clk 0:00:19]}  Re8 {[%clk 0:00:24]} 28. Rf6+ {[%clk 0:00:17]}  Kg4 {[%clk 0:00:24]} 29. Be3 {[%clk 0:00:11]}  Rd8 {[%clk 0:00:20]} 30. Rf4+ {[%clk 0:00:10]}  Kh3 {[%clk 0:00:20]} 31. Bd4 {[%clk 0:00:09]}  Re8 {[%clk 0:00:16]} 32. Be3 {[%clk 0:00:09]}  Rd8 {[%clk 0:00:16]} 33. Rd4 {[%clk 0:00:09]}  Rb8 {[%clk 0:00:07]} 34. Kf1 {[%clk 0:00:09]}  b4 {[%clk 0:00:07]} 35. cxb4 {[%clk 0:00:09]}  Rxb4 {[%clk 0:00:07]} 36. Rd2 {[%clk 0:00:09]}  c3 {[%clk 0:00:07]} 37. Rd4 {[%clk 0:00:02]}  Rxb2 {[%clk 0:00:06]} 38. Ke1 {[%clk 0:00:02]}  Rb1+ {[%clk 0:00:06]} 39. Rd1 {[%clk 0:00:02]}  Rxd1# {[%clk 0:00:07]} 0-1


[Site "https://www.chess.com"]